fUSD/lending_fUSD_20240104
["ID","MTS","AMOUNT","RATE_DAILY","PERIOD"]
[310101857,1704332995750,14109.0,0.0003,120]
[310101859,1704333004004,609.6,0.00022217,2]
[310101860,1704333016414,331.04,0.00022212,2]
[310101863,1704333031709,-155.0,0.00022534,2]
[310101864,1704333031720,-155.0,0.00022535,2]
[310101865,1704333031730,-155.0,0.00022536,2]
[310101867,1704333031741,-155.0,0.00022537,2]
[310101869,1704333031750,-374.23,0.00022553,2]
[310101871,1704333031760,-168.39438479,0.00022583,2]
[310101872,1704333031771,-5250.97767582,0.00022676,2]
[310101873,1704333031781,-172.736956,0.00022683,2]
[310101874,1704333031792,-172.736956,0.00022684,2]
[310101875,1704333031802,-150.0,0.00022729,2]
[310101876,1704333031812,-173.46,0.0002273,2]
[310101877,1704333031822,-391.31,0.0002273,2]
[310101878,1704333031836,-3599.35,0.0002273,2]
[310101879,1704333031846,-16304.09,0.0002273,2]
[310101880,1704333031857,-282.3564364,0.00022768,2]
[310101881,1704333031866,-860.97,0.00022768,2]
[310101882,1704333031876,-298.72,0.00022768,2]
[310101883,1704333031886,-170.25,0.00022794,2]
[310101884,1704333031895,-1145.87,0.00022794,2]
[310101885,1704333031905,-329.98824578,0.000228,2]
[310101886,1704333031915,-6778.97,0.000228,2]
[310101887,1704333031924,-158.18,0.00022884,2]
[310101888,1704333031934,-287.23191403,0.0002289,2]
[310101889,1704333031944,-1014.61,0.00022899,2]
[310101890,1704333031955,-493.13536729,0.000229,2]
[310101891,1704333031965,-3282.56450361,0.000229,2]
[310101892,1704333031975,-168.39438479,0.000229,2]
[310101893,1704333031985,-810.10031784,0.000229,2]
[310101894,1704333031995,-278.89472981,0.000229,6]
[310101895,1704333032005,-531.37828519,0.000229,2]
[310101896,1704333032016,-183.05927551,0.000229,2]
[310101897,1704333032028,-322.17270235,0.000229,2]
[310101898,1704333032038,-164.51811532,0.000229,2]
[310101899,1704333032049,-475.71856559,0.000229,2]
[310101900,1704333032058,-3636.26866374,0.000229,2]
[310101901,1704333032068,-940.79950645,0.00022997,2]
[310101902,1704333032077,-245.32700305,0.00022997,2]
[310101903,1704333032087,-155.20120179,0.00022998,2]
[310101904,1704333032097,-155.14628097,0.00022998,2]
[310101905,1704333032107,-1045.2821852,0.00022998,2]
[310101906,1704333032117,-1715.56358002,0.00022998,2]
[310101907,1704333032127,-155.04838241,0.00022998,2]
[310101908,1704333032137,-208.01123929,0.00022998,2]
[310101909,1704333032147,-260.2260975,0.00022998,2]
[310101910,1704333032156,-271.10327467,0.00022998,2]
[310101911,1704333032165,-218.0018593,0.00022998,2]
[310101913,1704333032175,-155.49522085,0.00022998,2]
[310101923,1704333032270,-384.74314791,0.00022998,2]
[310101925,1704333032280,-2903.31896803,0.00022998,2]
[310101927,1704333032290,-253.05869591,0.00022998,2]
[310101929,1704333032300,-1137.56406832,0.00022998,2]
[310101931,1704333032309,-155.45313516,0.00022998,2]
[310101933,1704333032319,-155.56291723,0.00022998,2]
[310101935,1704333032329,-155.34310982,0.00022998,2]
[310101937,1704333032340,-59.33159923,0.00022998,2]
[310101974,1704333032691,-446.48737761,0.00022998,2]
[310101976,1704333032703,-37.61582756,0.00022998,2]
[310101978,1704333032712,-980.56984682,0.00022998,2]
[310101981,1704333032732,-404.37818363,0.00022998,2]
[310101984,1704333032744,-847.36934678,0.00022998,2]
[310101985,1704333032768,-383.51492831,0.00022998,2]
[310101986,1704333032777,-155.45219313,0.00022998,2]
[310101987,1704333032786,-155.39916159,0.00022998,2]
[310101988,1704333032796,-259.73060984,0.00022998,2]
[310101989,1704333032805,-292.14918303,0.00022998,2]
[310101990,1704333032814,-155.73214185,0.00022998,2]
[310101991,1704333032823,-5225.17033687,0.00022998,2]
[310101992,1704333032832,-163.99931789,0.00022998,2]
[310101993,1704333032842,-238.76747955,0.00022998,2]
[310101994,1704333032851,-283.89933176,0.00022998,2]
[310101995,1704333032860,-3344.99023421,0.00022999,2]
[310101996,1704333032869,-219.02839264,0.00022999,2]
[310101997,1704333032878,-337.71275396,0.00022999,2]
[310101998,1704333032887,-158.73196961,0.00022999,2]
[310101999,1704333032896,-6439.8021362,0.00022999,2]
[310102000,1704333032905,-242.58514604,0.00022999,2]
[310102001,1704333032915,-371.22121216,0.00022999,2]
[310102002,1704333032924,-245.04181718,0.00022999,2]
[310102003,1704333032933,-155.05220869,0.00022999,2]
[310102004,1704333032943,-155.6131462,0.00022999,2]
[310102005,1704333032952,-3332.36628082,0.00022999,2]
[310102006,1704333032962,-310.32004989,0.00022999,2]
[310102007,1704333032971,-158.91377843,0.00022999,2]
[310102008,1704333032981,-1448.73348739,0.00022999,2]
[310102009,1704333032990,-1258.53915336,0.00022999,2]
[310102010,1704333032999,-11348.83653998,0.00022999,2]
[310102011,1704333033009,-2137.72616873,0.00022999,2]
[310102012,1704333033018,-185.99059599,0.00022999,2]
[310102013,1704333033027,-533.1073197,0.00022999,2]
[310102014,1704333033036,-155.36765677,0.00022999,2]
[310102015,1704333033047,-155.18173887,0.00022999,2]
[310102016,1704333033056,-1768.25939549,0.00022999,2]
[310102017,1704333033065,-45468.87434613,0.00023,2]
[310102020,1704333038050,-301923.84085912,0.00023,2]
[310102025,1704333040332,-3918.87816296,0.00023,2]
[310102026,1704333040344,-741.40277994,0.00023,2]
[310102027,1704333041091,-304.95227845,0.00023,2]
[310102052,1704333043024,-574.55906198,0.00023,2]
[310102053,1704333043049,-1425.24947549,0.00023,2]
[310102054,1704333043064,-1722.12204712,0.00023,2]
[310102055,1704333043076,-6089.55782136,0.00023,2]
[310102056,1704333043087,-574.94969355,0.00023,2]
[310102057,1704333043106,-431.07040158,0.00023,2]
[310102058,1704333043151,-26.87215575,0.00023,2]
[310102059,1704333043182,-1090.1555319,0.00023,2]
[310102060,1704333043199,-976.9941864,0.00023,2]
[310102061,1704333043211,-2727.75803631,0.00023,2]
[310102070,1704333045828,-206.87183303,0.00022999,2]
[310102071,1704333045838,-155.34059364,0.00022999,2]
[310102072,1704333045847,-419.84099222,0.00022999,2]
[310102073,1704333045856,-53.80587763,0.00023,2]
[310102074,1704333045869,-755.0,0.00023,2]
[310102230,1704333051944,622.45614432,0.00022079,2]
[310102231,1704333060772,939.81007395,0.00022078,2]
[310102232,1704333067342,152.70627102,0.00022,2]
[310102233,1704333097926,624.65032768,0.00021982,2]
[310102235,1704333142494,503.17839111,0.000192,2]
[310102236,1704333162420,407.93,0.00021544,2]
[310102237,1704333167621,1688.0,0.000225,2]
[310102238,1704333224584,1688.0,0.000225,2]
[310102239,1704333236418,1688.0,0.000225,2]
[310102244,1704333243933,1688.0,0.000225,2]
[310102245,1704333253479,1688.0,0.000225,2]
[310102246,1704333261648,1688.0,0.000225,2]
[310102247,1704333269137,1688.0,0.000225,2]
[310102248,1704333277184,1688.0,0.000225,2]
[310102249,1704333285293,1688.0,0.000225,2]
[310102250,1704333292072,1688.0,0.000225,2]
[310102251,1704333304464,1688.0,0.000225,2]
[310102252,1704333305472,162.55,0.00018324,2]
[310102253,1704333311777,1688.0,0.000225,2]
[310102254,1704333321837,1688.0,0.000225,2]
[310102255,1704333332358,1688.0,0.000225,2]
[310102257,1704333339866,1688.0,0.000225,2]
[310102258,1704333348723,1688.0,0.000225,2]
[310102259,1704333357088,1390.9,0.000225,2]
[310102260,1704333370854,150.0,0.00022,2]
[310102261,1704333386422,-1448.0,0.00037966,120]
[310102262,1704333386445,-366.20846401,0.00037966,120]
[310102263,1704333386468,-2186.94030843,0.00037966,30]
[310102264,1704333386490,-352.91507651,0.00037966,30]
[310102265,1704333386513,-304.46181521,0.00037966,30]
[310102266,1704333386535,-708.68350249,0.00037966,30]
[310102267,1704333386557,-2269.70975071,0.00037966,30]
[310102268,1704333386583,-855.50781663,0.00037966,30]
[310102269,1704333386605,-1965.11261793,0.00037966,30]
[310102270,1704333386627,-1919.05491858,0.00037966,120]
[310102271,1704333386648,-206.20035886,0.00037966,120]
[310102272,1704333386670,-427.12664789,0.00037966,30]
[310102273,1704333386691,-1054.33229094,0.00037966,120]
[310102274,1704333386713,-282.39368379,0.00037966,30]
[310102275,1704333386735,-2123.04156154,0.00037966,120]
[310102276,1704333386757,-463.01365318,0.00037966,120]
[310102277,1704333386779,-563.20075602,0.00037966,120]
[310102278,1704333386802,-293.74407178,0.00037966,120]
[310102279,1704333386829,-3260.55371516,0.00037966,120]
[310102280,1704333386852,-1427.09389098,0.00037966,30]
[310102281,1704333386876,-236.29324261,0.00037966,120]
[310102282,1704333386899,-2445.37077581,0.00037966,30]
[310102283,1704333386921,-261.99275347,0.00037966,30]
[310102284,1704333386944,-509.12972913,0.00037966,30]
[310102285,1704333386965,-2635.31185068,0.00037966,30]
[310102286,1704333386987,-238.11114413,0.00037966,30]
[310102287,1704333387009,-386.51085348,0.00037966,30]
[310102288,1704333387030,-677.09241577,0.00037966,30]
[310102289,1704333387053,-501.7521146,0.00037966,30]
[310102290,1704333387077,-2495.39489761,0.00037966,30]
[310102291,1704333387099,-3319.36470923,0.00037966,30]
[310102292,1704333387121,-150.0,0.00037966,120]
[310102293,1704333387143,-12000.0,0.00037966,120]
[310102294,1704333387166,-6206.7368072,0.00037966,120]
[310102295,1704333387188,-26567.999998,0.00037966,120]
[310102296,1704333387209,-228.55430834,0.00037966,120]
[310102297,1704333387231,-314351.67117907,0.00037966,120]
[310102298,1704333387253,-1238.89521201,0.00037966,120]
[310102299,1704333387274,-1009.03521095,0.00037966,35]
[310102300,1704333387297,-1192.11190008,0.00037966,30]
[310102301,1704333387319,-880.0,0.00037966,120]
[310102302,1704333387342,-220556.11917248,0.00037966,30]
[310102303,1704333387364,-324.17210246,0.00037966,120]
[310102304,1704333387388,-2000.0,0.00037966,31]
[310102305,1704333387410,-43386.81342325,0.00037966,30]
[310102306,1704333387432,-8327.36840519,0.00037966,30]
[310102307,1704333387454,-3340.31204857,0.00037966,30]
[310102308,1704333387477,-4801.96662289,0.00037966,30]
[310102309,1704333387499,-41082.88805185,0.00037966,119]
[310102310,1704333387521,-500.0,0.00037966,30]
[310102311,1704333387543,-500.0,0.00037966,30]
[310102312,1704333387565,-500.0,0.00037966,30]
[310102313,1704333387590,-10000.0,0.00037966,30]
[310102314,1704333387612,-10000.0,0.00037966,60]
[310102315,1704333387634,-10000.0,0.00037966,45]
[310102316,1704333387656,-59902.36594021,0.00037966,120]
[310102317,1704333387678,-500.0,0.00037966,30]
[310102318,1704333387700,-500.0,0.00037966,30]
[310102319,1704333387723,-549.74833085,0.00037966,30]
[310102320,1704333387744,-572.22206102,0.00037966,90]
[310102321,1704333387766,-1316.60369043,0.00037966,120]
[310102322,1704333387788,-500.0,0.00037966,30]
[310102323,1704333387811,-186688.86322212,0.00037966,60]
[310102324,1704333387835,-8470.18454414,0.00037966,60]
[310102325,1704333387856,-14871.0,0.00037966,120]
[310102326,1704333387878,-500.0,0.00037966,30]
[310102327,1704333387901,-6105.0,0.00037966,30]
[310102328,1704333387923,-500.0,0.00037966,30]
[310102329,1704333387945,-1532.8163,0.00037966,30]
[310102330,1704333387967,-203.30994081,0.00037966,120]
[310102331,1704333387991,-1753.66238736,0.00037966,120]
[310102332,1704333388013,-2057.696329,0.00037966,30]
[310102333,1704333388036,-537.816359,0.00037966,63]
[310102334,1704333388058,-304.434167,0.00037966,30]
[310102335,1704333388083,-186.05733682,0.00037966,31]
[310102336,1704333388106,-1962.663427,0.00037966,30]
[310102337,1704333391401,-151.0,0.0003193,120]
[310102338,1704333391432,-151.0,0.00032582,30]
[310102339,1704333391570,-300.0,0.00034,35]
[310102340,1704333391626,-162.46684797,0.00034529,30]
[310102341,1704333391665,-160.847731,0.00035,30]
[310102342,1704333391689,-5513.43809297,0.00035,120]
[310102343,1704333391712,-1000.0,0.00035,120]
[310102344,1704333391735,-300.0,0.00035,36]
[310102345,1704333391758,-162.46684797,0.00035029,30]
[310102346,1704333391807,-158.24764484,0.000355,30]
[310102347,1704333391835,-162.46684797,0.00035529,30]
[310102348,1704333391878,-722.87339582,0.00036,30]
[310102349,1704333391901,-500.0,0.00036,120]
[310102350,1704333391924,-300.0,0.00036,37]
[310102351,1704333391958,-150.0,0.0003629,120]
[310102352,1704333391991,-162.46684797,0.00036529,30]
[310102353,1704333392023,-150.0,0.00036721,120]
[310102354,1704333392056,-500.0,0.00037,120]
[310102355,1704333392083,-500.0,0.00037,30]
[310102356,1704333392108,-300.0,0.00037,38]
[310102357,1704333392131,-150.0,0.00037,30]
[310102358,1704333392155,-150.0,0.000372,30]
[310102359,1704333392185,-150.0,0.00037363,120]
[310102360,1704333392210,-193.37738756,0.000374,30]
[310102361,1704333392234,-3000.0,0.00037475,120]
[310102362,1704333392259,-150.0,0.0003748,120]
[310102363,1704333392291,-2594.67563723,0.000375,30]
[310102364,1704333392323,-2000.0,0.000375,30]
[310102365,1704333392347,-162.46684797,0.00037529,30]
[310102366,1704333392379,-2000.0,0.00037584,31]
[310102367,1704333392407,-150.08384584,0.000378,30]
[310102368,1704333392450,-500.26989418,0.00038,30]
[310102369,1704333392476,-722.78270083,0.00038,30]
[310102370,1704333392502,-300.0,0.00038,39]
[310102371,1704333392525,-250.0,0.00038,120]
[310102372,1704333392551,-2021.91,0.00038,30]
[310102373,1704333392575,-286.18795758,0.00038,33]
[310102374,1704333392601,-167.24,0.00038078,30]
[310102375,1704333392626,-166.12,0.00038078,30]
[310102376,1704333392649,-165.35,0.00038078,30]
[310102377,1704333392672,-526.36,0.00038078,30]
[310102378,1704333392703,-28558.48871711,0.00038289,30]
[310102379,1704333392730,-526.36,0.00038328,30]
[310102380,1704333392753,-1598.56419183,0.00038356,30]
[310102381,1704333392785,-1307.59,0.00038356,60]
[310102382,1704333392811,-1040.25153614,0.000384,30]
[310102383,1704333392836,-500.0,0.000385,120]
[310102384,1704333392861,-167.24,0.00038515,60]
[310102385,1704333392885,-165.35,0.00038515,60]
[310102386,1704333392908,-162.46684795,0.00038529,30]
[310102387,1704333392931,-526.36,0.00038578,60]
[310102388,1704333392959,-165.0,0.0003867,60]
[310102389,1704333392984,-242.99,0.0003867,60]
[310102390,1704333393008,-150.0,0.0003867,60]
[310102391,1704333393033,-150.0,0.0003867,60]
[310102392,1704333393056,-150.0,0.0003867,60]
[310102393,1704333393080,-52364.0,0.0003867,60]
[310102394,1704333393103,-150.0,0.0003867,60]
[310102395,1704333393126,-150.0,0.0003867,60]
[310102396,1704333393149,-181.0,0.0003867,60]
[310102397,1704333393173,-181.0,0.0003867,60]
[310102398,1704333393199,-165.0,0.0003868,60]
[310102399,1704333393222,-150.0,0.0003868,60]
[310102400,1704333393246,-150.0,0.0003868,60]
[310102401,1704333393269,-150.0,0.0003868,60]
[310102402,1704333393293,-221.58,0.0003868,60]
[310102403,1704333393316,-150.0,0.0003868,60]
[310102404,1704333393341,-52364.0,0.0003868,60]
[310102405,1704333393367,-150.0,0.0003868,60]
[310102406,1704333393390,-150.0,0.0003868,60]
[310102407,1704333393650,-181.0,0.0003868,60]
[310102408,1704333393672,-181.0,0.0003868,60]
[310102409,1704333393694,-181.0,0.0003868,60]
[310102410,1704333393717,-165.0,0.0003869,60]
[310102411,1704333393738,-150.0,0.0003869,60]
[310102412,1704333393760,-150.0,0.0003869,60]
[310102413,1704333393782,-150.0,0.0003869,60]
[310102414,1704333393804,-150.0,0.0003869,60]
[310102415,1704333393830,-150.0,0.0003869,60]
[310102416,1704333393851,-52364.0,0.0003869,60]
[310102417,1704333393874,-150.0,0.0003869,60]
[310102418,1704333393897,-150.0,0.0003869,60]
[310102419,1704333393921,-181.0,0.0003869,60]
[310102420,1704333393944,-181.0,0.0003869,60]
[310102421,1704333393967,-181.0,0.0003869,60]
[310102422,1704333393990,-181.0,0.0003869,60]
[310102423,1704333394013,-52364.0,0.0003877,60]
[310102424,1704333394036,-179.47,0.0003878,60]
[310102425,1704333394058,-52364.0,0.0003878,60]
[310102426,1704333394081,-150.0,0.0003879,60]
[310102427,1704333394104,-52364.0,0.0003879,60]
[310102428,1704333394126,-3077.60648002,0.000388,30]
[310102429,1704333394149,-526.36,0.00038828,60]
[310102430,1704333394173,-165.0,0.0003887,60]
[310102431,1704333394195,-165.0,0.0003888,60]
[310102432,1704333394218,-165.0,0.0003888,60]
[310102433,1704333394239,-52364.0,0.0003888,60]
[310102434,1704333394261,-150.0,0.0003888,60]
[310102435,1704333394284,-165.0,0.0003889,60]
[310102436,1704333394306,-295.07,0.0003889,60]
[310102437,1704333394332,-165.0,0.0003889,60]
[310102438,1704333394358,-52364.0,0.0003889,60]
[310102439,1704333394384,-150.0,0.0003889,60]
[310102440,1704333394408,-1605.0,0.000389,30]
[310102441,1704333394438,-167.24,0.00038953,60]
[310102442,1704333394461,-166.12,0.00038953,60]
[310102443,1704333394488,-165.35,0.00038953,60]
[310102444,1704333394511,-7391.0,0.0003897,60]
[310102445,1704333394533,-2384.0,0.0003897,60]
[310102446,1704333394558,-641.0,0.0003897,60]
[310102447,1704333394582,-7391.0,0.0003897,60]
[310102448,1704333394605,-2384.0,0.0003897,60]
[310102449,1704333394627,-641.0,0.0003897,60]
[310102450,1704333394650,-165.59,0.0003898,60]
[310102451,1704333394673,-169.55,0.0003898,60]
[310102452,1704333394696,-182.96,0.0003898,60]
[310102453,1704333394719,-7391.0,0.0003898,60]
[310102454,1704333394742,-2384.0,0.0003898,60]
[310102455,1704333394764,-641.0,0.0003898,60]
[310102456,1704333394786,-7391.0,0.0003898,60]
[310102457,1704333394810,-2384.0,0.0003898,60]
[310102458,1704333394832,-641.0,0.0003898,60]
[310102459,1704333394854,-2384.0,0.0003898,60]
[310102460,1704333394877,-7391.0,0.0003898,60]
[310102461,1704333394901,-641.0,0.0003898,60]
[310102462,1704333394925,-7397.89,0.0003898,60]
[310102463,1704333394947,-641.62,0.0003898,60]
[310102464,1704333394969,-2386.75,0.0003898,60]
[310102465,1704333394992,-165.0,0.0003899,60]
[310102466,1704333395014,-150.0,0.0003899,60]
[310102467,1704333395037,-216.04,0.0003899,60]
[310102468,1704333395059,-212.5,0.0003899,60]
[310102469,1704333395083,-7391.0,0.0003899,60]
[310102470,1704333395106,-2384.0,0.0003899,60]
[310102471,1704333395129,-641.0,0.0003899,60]
[310102472,1704333395152,-195.25,0.0003899,60]
[310102473,1704333395174,-7391.0,0.0003899,60]
[310102474,1704333395197,-2384.0,0.0003899,60]
[310102475,1704333395219,-641.0,0.0003899,60]
[310102476,1704333395242,-7391.0,0.0003899,60]
[310102477,1704333395269,-2384.0,0.0003899,60]
[310102478,1704333395292,-641.0,0.0003899,60]
[310102479,1704333395315,-2384.0,0.0003899,60]
[310102480,1704333395338,-7391.0,0.0003899,60]
[310102481,1704333395362,-641.0,0.0003899,60]
[310102482,1704333395387,-300.0,0.00039,40]
[310102483,1704333395412,-250.0,0.00039,120]
[310102484,1704333395435,-30216.90221306,0.00039,120]
[310102485,1704333395458,-29761.02938605,0.00039,40]
[310102486,1704333395482,-128474.11072852,0.00039,30]
[310102487,1704333395506,-1000.0,0.00039,120]
[310102488,1704333395530,-54854.60623555,0.00039,30]
[310102489,1704333395554,-1857.270551,0.00039,30]
[310102490,1704333395578,-526.36,0.00039078,60]
[310102491,1704333395603,-150.0,0.00039144,120]
[310102492,1704333395632,-184577.54590614,0.0003922,30]
[310102493,1704333395657,-1976.72351471,0.0003922,30]
[310102494,1704333395681,-1000.0,0.00039248,31]
[310102495,1704333395705,-52369.18,0.0003928,60]
[310102496,1704333395727,-52364.0,0.0003929,60]
[310102497,1704333395750,-526.36,0.00039327,60]
[310102498,1704333395785,-150.0,0.00039383,120]
[310102499,1704333395812,-167.24,0.0003939,60]
[310102500,1704333395842,-165.35,0.0003939,60]
[310102501,1704333395868,-2000.0,0.00039482,120]
[310102502,1704333395897,-2000.0,0.00039482,120]
[310102503,1704333395922,-2000.0,0.00039482,120]
[310102504,1704333395947,-2000.0,0.00039482,120]
[310102505,1704333395971,-511.56388274,0.00039482,120]
[310102506,1704333396001,-150.0,0.00039497,120]
[310102507,1704333396026,-1200.0,0.000395,30]
[310102508,1704333396052,-526.36,0.00039577,60]
[310102509,1704333396324,-167.24,0.00039827,60]
[310102510,1704333396348,-166.12,0.00039827,60]
[310102511,1704333396375,-165.35,0.00039827,60]
[310102512,1704333396399,-526.36,0.00039827,60]
[310102513,1704333396424,-196457.9491446,0.0003998,30]
[310102514,1704333396448,-162700.0,0.0003999,60]
[310102515,1704333396473,-1105.95,0.00039999,30]
[310102516,1704333396507,-250.0,0.0004,120]
[310102517,1704333396531,-2000.0,0.0004,120]
[310102518,1704333396556,-1000.0,0.0004,120]
[310102519,1704333396583,-1576.0,0.0004,120]
[310102520,1704333396605,-2000.0,0.0004,120]
[310102521,1704333396631,-3181.07420993,0.0004,30]
[310102522,1704333396657,-300.0,0.0004,41]
[310102523,1704333396681,-588.32747825,0.0004,30]
[310102524,1704333396706,-200.0,0.0004,30]
[310102525,1704333396731,-620.0,0.0004,120]
[310102526,1704333396755,-724.16450702,0.0004,30]
[310102527,1704333396778,-1000.0,0.0004,30]
[310102528,1704333396803,-253.16866017,0.0004,120]
[310102529,1704333396827,-477.12749073,0.0004,30]
[310102530,1704333396850,-196.61666284,0.0004,30]
[310102531,1704333396873,-73555.04336114,0.0004,30]
[310102532,1704333396897,-7651.21469059,0.0004,60]
[310102533,1704333396920,-8097.0,0.0004,30]
[310102534,1704333396944,-1124.0,0.0004,30]
[310102535,1704333396968,-20028.67,0.0004,30]
[310102536,1704333396991,-8077.66332663,0.0004,120]
[310102537,1704333397015,-312000.0,0.0004,30]
[310102538,1704333397037,-3431.38020642,0.0004,30]
[310102539,1704333397060,-1000.0,0.0004,120]
[310102540,1704333397084,-1000.0,0.0004,120]
[310102541,1704333397107,-3054.0,0.0004,30]
[310102542,1704333397129,-150.0,0.0004,30]
[310102543,1704333397152,-621.0,0.0004,120]
[310102544,1704333397175,-188.0,0.0004,30]
[310102545,1704333397197,-13448.16184739,0.0004,30]
[310102546,1704333397223,-5027.26422778,0.0004,30]
[310102547,1704333397248,-2488.53296628,0.0004,30]
[310102548,1704333397272,-41852.17692911,0.0004,30]
[310102549,1704333397296,-3917.38572797,0.0004,30]
[310102550,1704333397319,-1788.19382672,0.0004,30]
[310102551,1704333397346,-3891.18503457,0.0004,30]
[310102552,1704333397370,-8274.83483375,0.0004,30]
[310102553,1704333397395,-3302.240002,0.0004,30]
[310102554,1704333397419,-4350.53156792,0.0004,30]
[310102555,1704333397442,-366.36399885,0.0004,30]
[310102556,1704333397466,-3123.35794848,0.0004,30]
[310102557,1704333397488,-39860.52876451,0.0004,30]
[310102558,1704333397511,-1200.0,0.0004,30]
[310102559,1704333397542,-39547.47056911,0.0004,30]
[310102560,1704333397567,-150.0,0.00040184,120]
[310102561,1704333397592,-1000.0,0.00040484,31]
[310102562,1704333397615,-434.0,0.000406,30]
[310102563,1704333397639,-2250.0,0.000407,30]
[310102564,1704333397664,-1208.0,0.00040774,30]
[310102565,1704333397687,-3284.8063133,0.0004098,30]
[310102566,1704333397711,-500.0,0.00040987,32]
[310102567,1704333397736,-250.0,0.00041,120]
[310102568,1704333397760,-300.0,0.00041,42]
[310102569,1704333397784,-1500.0,0.00041,30]
[310102570,1704333397809,-850825.23698542,0.00041,30]
[310102571,1704333558939,175.77,0.00022,2]
[310102573,1704333622475,157.63053602,0.00022448,2]
[310102574,1704333627435,157.63053592,0.00022475,2]
[310102577,1704333700740,1058.70930274,0.00022499,2]
[310102581,1704333712480,387.53,0.00019927,2]
[310102582,1704333712690,387.53,0.00022191,2]
[310102583,1704333783599,5944.65,0.00021855,2]
[310102585,1704333892684,-1039.49919419,0.000225,2]
[310102586,1704333892704,-160.64801508,0.00022501,2]
[310102587,1704333892724,-157.63053592,0.00022501,2]
[310102588,1704333892743,-160.64801508,0.00022528,2]
[310102589,1704333892763,-157.63053592,0.00022528,2]
[310102590,1704333892783,-180.97463266,0.00022548,2]
[310102591,1704333892802,-175.77,0.00022548,2]
[310102592,1704333892821,-157.63053592,0.00022554,2]
[310102593,1704333892840,-157.63053592,0.00022581,2]
[310102594,1704333892860,-157.63053592,0.00022608,2]
[310102595,1704333892880,-157.63053592,0.00022634,2]
[310102596,1704333892901,-157.63053592,0.00022661,2]
[310102597,1704333892921,-157.63053592,0.00022687,2]
[310102598,1704333892942,-512.32,0.00022707,2]
[310102599,1704333892961,-157.63053592,0.00022714,2]
[310102600,1704333892980,-157.63053592,0.0002274,2]
[310102601,1704333892999,-431.85,0.00022757,2]
[310102602,1704333893019,-157.63053592,0.00022767,2]
[310102603,1704333893039,-158.18,0.00022781,2]
[310102604,1704333893060,-157.63053592,0.00022794,2]
[310102605,1704333893079,-157.63053592,0.0002282,2]
[310102606,1704333893103,-157.63053592,0.00022847,2]
[310102607,1704333893122,-157.63053592,0.00022873,2]
[310102608,1704333893141,-1391.13667119,0.00022894,2]
[310102609,1704333893160,-499.99,0.00022894,2]
[310102610,1704333893180,-150.0,0.00022896,2]
[310102611,1704333893201,-150.0,0.00022896,2]
[310102612,1704333893221,-7760.00854036,0.00022897,2]
[310102613,1704333893240,-19007.92107113,0.00022898,2]
[310102614,1704333893259,-400.0,0.00022898,2]
[310102615,1704333893279,-3947.40080992,0.00022898,2]
[310102616,1704333893299,-1429.61428073,0.00022898,2]
[310102617,1704333893320,-1076.3119625,0.00022899,2]
[310102618,1704333893340,-728.29501,0.000229,2]
[310102619,1704333893361,-312.13,0.000229,2]
[310102620,1704333893380,-469.52898313,0.000229,2]
[310102621,1704333893401,-157.63053592,0.000229,2]
[310102622,1704333893421,-80367.32,0.000229,2]
[310102623,1704333893444,-402.60138787,0.000229,2]
[310102624,1704333893464,-317.14571038,0.000229,2]
[310102625,1704333893485,-3009.01746167,0.000229,2]
[310102626,1704333893505,-223.11578384,0.000229,6]
[310102627,1704333893527,-2424.17910916,0.000229,2]